Cogmind - Beta 10.2 @@@ ROGUE MODE // 2021.08.12 @ 15:55:46 Player: Gilgameshx13 Result: Destroyed by Y-45 Defender with Heavy Assault Rifle Performance ------------- Evolutions (1) 500 Regions Visited (3) 600 Robots Destroyed (7) 35 Value Destroyed (167) 167 Prototype IDs (2) 40 Alien Tech Used (0) 0 Bonus (0) 0 TOTAL SCORE: 1342 Bonus ------- None Cogmind --------- Core Integrity 0/400 Matter 247/300 Energy 91/100 System Corruption 2% Temperature Cool (15) Movement Core (150) Ox2 Location -9/Materials Parts ------- > --- POWER (1) -------- (None) > --- PROPULSION (2) --- (None) > --- UTILITY (4) ------ Medium Storage Unit > --- WEAPON (2) ------- (None) > --- INVENTORY (8) ---- Cooling System High-capacity Storage Unit Propulsion Shielding Light Cannon Light Cannon Peak State ------------ > --- POWER ------------ Light Ion Engine > --- PROPULSION ------- Cesium-ion Thruster Cesium-ion Thruster > --- UTILITY ---------- Medium Storage Unit Sensor Array Advanced Sensor Array System Shield > --- WEAPON ----------- Light Cannon Light Cannon > --- INVENTORY -------- Ion Engine Light Treads Light Treads EM Pulse Gun Medium Laser Light Assault Rifle Datajack [Rating: 17] Favorites ----------- Power Light Ion Engine Engine Light Ion Engine Propulsion Light Treads Treads Light Treads Flight Unit Cesium-ion Thruster Utility Medium Storage Unit Device Sensor Array Storage Medium Storage Unit Hackware System Shield Weapon EM Pulse Gun Energy Gun EM Pulse Gun Ballistic Gun Light Assault Rifle Ballistic Cannon Light Cannon Build | -11 -10 -10 -9 ------- Run | Scr Mat Min Mat Slots Evolved 2 | . . . 2 Power . | . . . . Propulsion . | . . . . Utility 2 | . . . 2 Weapon . | . . . . Parts Attached 20 | 6 2 . 12 Power 2 | 1 . . 1 Engine 2 | 1 . . 1 Core . | . . . . Reactor . | . . . . Propulsion 6 | 2 . . 4 Treads 2 | 2 . . . Leg . | . . . . Wheel . | . . . . Hover . | . . . . Flight 4 | . . . 4 Utility 6 | 1 2 . 3 Device 2 | . 1 . 1 Storage 2 | 1 1 . . Processor . | . . . . Hackware 2 | . . . 2 Protection . | . . . . Artifact . | . . . . Weapon 6 | 2 . . 4 Energy Gun 1 | 1 . . . Energy Cannon . | . . . . Ballistic Gun 1 | 1 . . . Ballistic Cannon 4 | . . . 4 Launcher . | . . . . Special Weapon . | . . . . Impact Weapon . | . . . . Slashing Weapon . | . . . . Piercing Weapon . | . . . . Special Melee Weapon . | . . . . Unidentified Prototypes . | . . . . Parts Lost 9 | . . . 9 Power 2 | . . . 2 Propulsion 4 | . . . 4 Utility 3 | . . . 3 Weapon . | . . . . Highest Loss Streak 7 | . . . 7 Average Slot Usage (%) 81 | . 92 100 64 Engine 12 | . 14 14 10 Treads 17 | . 28 28 3 Flight 7 | . . . 17 Device 10 | . 6 14 12 Storage 12 | . 14 14 11 Hackware 1 | . . . 2 Energy Gun 7 | . 14 14 . Ballistic Gun 7 | . 14 14 . Ballistic Cannon 3 | . . . 7 Naked Turns . | . . . . Heaviest Build 18 | 10 15 15 18 Greatest Support 40 | 40 40 40 40 Greatest Overweight (x) 4 | . . . 4 Average Overweight (x) . | . . . . Largest Inventory Capacity 10 | 6 10 8 8 Average Capacity 7 | 5 6 8 8 Most Carried 8 | 4 5 5 8 Average Carried 4 | 1 3 5 7 Final Capacity 8 | 6 8 8 8 Final Carried 5 | 2 5 5 5 Class Distribution -------------------- 100% | Mutant Dominant Class ---------------- Mutant | -10/Materials Mutant | -10/Mines Mutant | -9/Materials Resources | -11 -10 -10 -9 ----------- Run | Scr Mat Min Mat Matter Collected 376 | 168 34 . 174 Remotely . | . . . . Salvage Created 204 | . 143 . 61 Parts 16 | . 11 . 5 Haulers Intercepted . | . . . . Recyclers Shooed 1 | . 1 . . Parts Field Recycled . | . . . . Retrieved Matter . | . . . . Parts Self-Destructed . | . . . . Prevented . | . . . . Kills | -11 -10 -10 -9 ------- Run | Scr Mat Min Mat Combat Hostiles Destroyed 6 | . 4 . 2 Guns 4 | . 4 . . Cannons 2 | . . . 2 Classes Destroyed 3 | . 3 . . Worker 1 | . 1 . . Swarmer 2 | . 2 . . Grunt 4 | . 2 . 2 Best Kill Streak 3 | . 3 . 2 Combat Bots Only 2 | . 2 . 2 Max Kills in Single Turn 1 | . 1 . 1 Gunslinging . | . . . . Exploded . | . . . . Melee . | . . . . Uniques/NPCs Destroyed . | . . . . Combat | -11 -10 -10 -9 -------- Run | Scr Mat Min Mat Damage Taken 1079 | . 265 . 814 Core 443 | . 35 . 408 Absorbed by Shields . | . . . . Core Remaining (%) 93 | 100 . 86 . Volleys Fired 21 | . 13 . 8 Largest 2 | . 2 . 2 Hottest 70 | . 60 . 70 Shots Fired 42 | . 26 . 16 Gun 26 | . 26 . . Cannon 16 | . . . 16 Launcher . | . . . . Special . | . . . . Kinetic 29 | . 13 . 16 Thermal . | . . . . Explosive . | . . . . Electromagnetic 13 | . 13 . . Robot Hit Streak 6 | . 5 . 6 Robot Miss Streak 3 | . 3 . 3 Penetration Max . | . . . . Secondary Targets 2 | . 2 . . Max Gunslinging Chain 1 | . 1 . . Shots Hit Robots 23 | . 15 . 8 Core Hits 9 | . 7 . 2 Critical Hits . | . . . . Critical Kills . | . . . . Critical Parts Destroyed . | . . . . Melee Attacks . | . . . . Impact . | . . . . Slashing . | . . . . Piercing . | . . . . Sneak Attacks . | . . . . Combat Hostiles . | . . . . Follow-up Attacks . | . . . . Damage Inflicted 279 | . 175 . 104 Guns 175 | . 175 . . Cannons 104 | . . . 104 Explosions . | . . . . Melee . | . . . . Ramming . | . . . . Kinetic 154 | . 50 . 104 Thermal . | . . . . Explosive . | . . . . Electromagnetic 125 | . 125 . . Impact . | . . . . Slashing . | . . . . Piercing . | . . . . Highest Corruption 2 | . . . 2 Average Corruption 2 | . . . 2 Corruption Purged . | . . . . Effects 2 | . . . 2 Message Errors 1 | . . . 1 Data Loss (minor) 1 | . . . 1 Overload Shots . | . . . . Overflow Damage . | . . . . Projectiles . | . . . . Explosions . | . . . . Melee . | . . . . Knockbacks 2 | . . . 2 Impact . | . . . . Kinetic 2 | . . . 2 Secondary . | . . . . Self-Inflicted Damage . | . . . . Shots . | . . . . Rammed 1 | . . . 1 Targets Rammed 1 | . . . 1 Kicked . | . . . . Crushed . | . . . . Highest Temperature 102 | . 64 . 102 Average Temperature 38 | . 25 . 53 Received Heat Transfer 384 | . 66 . 318 Siege Activations . | . . . . Robots Corrupted . | . . . . Combat Hostiles . | . . . . Parts Fried . | . . . . Impact Corruptions . | . . . . Robots Melted . | . . . . Combat Hostiles . | . . . . Parts Melted . | . . . . Heat Transferred . | . . . . Parts Sabotaged . | . . . . Parts Stolen . | . . . . Parts Stripped . | . . . . Power Chain Reactions . | . . . . Missiles Intercepted . | . . . . Alert | -11 -10 -10 -9 ------- Run | Scr Mat Min Mat Peak Influence 154 | . 130 50 154 Initial 50 | . . 50 19 Average 50 | . 59 50 60 Maximum Alert Level . | . . . . Low Security (%) 100 | 100 100 100 100 Level 1 . | . . . . Level 2 . | . . . . Level 3 . | . . . . Level 4 . | . . . . Level 5 . | . . . . High Security . | . . . . Max Security . | . . . . Squads Dispatched 3 | . . . 3 Investigation . | . . . . Extermination . | . . . . Reinforcement 3 | . . . 3 Assault . | . . . . Garrison . | . . . . Intercept . | . . . . Construction Impeded . | . . . . Haulers Reinforced . | . . . . Stealth | -11 -10 -10 -9 --------- Run | Scr Mat Min Mat Distress Signals 1 | . . . 1 Communications Jammed . | . . . . Distress Signals . | . . . . Times Spotted 27 | . 6 . 21 Peak Tracking Total 11 | . 3 . 11 Tactical Retreats 3 | . . . 3 Traps | -11 -10 -10 -9 ------- Run | Scr Mat Min Mat Traps Triggered 1 | . . . 1 Indirectly . | . . . . Trap Hack Attempts . | . . . . Triggered . | . . . . Disarmed . | . . . . Reprogrammed . | . . . . Reused . | . . . . Traps Extracted . | . . . . Installed . | . . . . Triggered . | . . . . Machines | -11 -10 -10 -9 ---------- Run | Scr Mat Min Mat Machines Disabled 1 | . 1 . . Max in Single Turn 1 | . 1 . . Machines Sabotaged . | . . . . Garrisons Compromised . | . . . . Overloaded Fab Kills . | . . . . Fab Network Shutdowns . | . . . . Hacking | -11 -10 -10 -9 --------- Run | Scr Mat Min Mat Machines Accessed 1 | . 1 . . Terminals 1 | . 1 . . Fabricators . | . . . . Repair Stations . | . . . . Recycling Units . | . . . . Scanalyzers . | . . . . Garrison Access . | . . . . Total Hacks 2 | . 2 . . Successful 2 | . 2 . . Failed . | . . . . Catastrophic . | . . . . Database Lockouts . | . . . . Manual . | . . . . Terminals 2 | . 2 . . Fabricators . | . . . . Repair Stations . | . . . . Recycling Units . | . . . . Scanalyzers . | . . . . Garrison Access . | . . . . Terminal Hacks 2 | . 2 . . Prototype ID Bank 1 | . 1 . . Alert Level 1 | . 1 . . Fabricator Hacks . | . . . . Repair Station Hacks . | . . . . Recycling Unit Hacks . | . . . . Scanalyzer . | . . . . Garrison Access Hacks . | . . . . Unauthorized Hacks . | . . . . Terminals . | . . . . Fabricators . | . . . . Repair Stations . | . . . . Recycling Units . | . . . . Scanalyzers . | . . . . Garrison Access . | . . . . Data Cores Recovered . | . . . . Used . | . . . . Hacking Detections . | . . . . Full Trace Events . | . . . . Feedback Events . | . . . . Feedback Blocked . | . . . . Robot Schematics Acquired . | . . . . Robots Built . | . . . . Matter . | . . . . Time . | . . . . Total Robot Build Rating . | . . . . Part Schematics Acquired . | . . . . Parts Built . | . . . . Matter . | . . . . Time . | . . . . Total Part Build Rating . | . . . . Parts Repaired . | . . . . Time . | . . . . Parts Recycled . | . . . . Recycled Matter . | . . . . Retrieved Matter . | . . . . Retrieved Components . | . . . . Parts Scanalyzed . | . . . . Part Schematics Acquired . | . . . . Parts Damaged . | . . . . Bothacking | -11 -10 -10 -9 ------------ Run | Scr Mat Min Mat Used RIF Installer . | . . . . Robots Hacked . | . . . . Non-combat . | . . . . Combat . | . . . . Robot Hacks Applied . | . . . . Relay Couplers Released . | . . . . Robots Rewired . | . . . . Allies Hacked . | . . . . Hacks Repelled . | . . . . Allies | -11 -10 -10 -9 -------- Run | Scr Mat Min Mat Total Allies . | . . . . Largest Group . | . . . . Highest-Rated Group . | . . . . Highest-Rated Ally . | . . . . Total Orders . | . . . . Ally Attacks . | . . . . Total Damage . | . . . . Kills . | . . . . Allies Corrupted . | . . . . Allies Melted . | . . . . Intel | -11 -10 -10 -9 ------- Run | Scr Mat Min Mat Robot Analysis Total . | . . . . Derelict Logs Recovered . | . . . . Drone Launches . | . . . . Drone Recoveries . | . . . . Exploration | -11 -10 -10 -9 ------------- Run | Scr Mat Min Mat Turns Passed 819 | 118 268 125 308 Spaces Moved 729 | 77 138 79 435 Core 20 | 16 . . 4 Treads 302 | 61 138 79 24 Legs . | . . . . Wheels . | . . . . Hover . | . . . . Flight 407 | . . . 407 Fastest Speed 37 | 50 160 160 37 Average Speed 96 | 137 160 160 57 Slowest Speed 250 | 160 160 160 250 Overloaded Moves . | . . . . Propulsion Burnouts . | . . . . Robots Hopped 8 | . . . 8 Cave-ins Triggered . | . . . . Exploration Rate (%) 23 | 4 28 21 40 Regions Visited 3 Branch Regions 1 Pre-discovered Areas . | . . . . Known Exits Taken . | . . . . Unknown Exits Taken 3 | 1 1 1 . Scrap Searched . | . . . . Spaces Dug . | . . . . Terrain Destroyed . | . . . . Melee . | . . . . Projectile . | . . . . AOE . | . . . . Terrain Rammed . | . . . . Walls Destroyed . | . . . . Machines Disabled . | . . . . Actions | -11 -10 -10 -9 --------- Run | Scr Mat Min Mat Total 804 | 90 163 78 473 Wait 3 | . 1 . 2 Move 713 | 76 137 78 422 Hop 5 | . . . 5 Pick Up 26 | 8 7 . 11 Fast Attach . | . . . . Attach 16 | 6 2 . 8 Detach 4 | . . . 4 Swap 4 | . . . 4 Drop 11 | . 3 . 8 Fire 21 | . 13 . 8 Melee . | . . . . Ram 1 | . . . 1 Kick . | . . . . Crush . | . . . . Escape Stasis . | . . . . Rewire . | . . . . Trap . | . . . . Miscellaneous . | . . . . Route ------- -11/Scrapyard -10/Materials -10/Mines -9/Materials History --------- Turn | Location | Event 4 | -11/Scrapyard | Discovered new exit (range 16) 119 | -11/Scrapyard | Entered Materials 309 | -10/Materials | Build established: Mutant 375 | -10/Materials | Discovered new exit (range 8) 387 | -10/Materials | Entered Mines 499 | -10/Mines | Discovered new exit (range 8) 512 | -10/Mines | Entered Materials 512 | -9/Materials | Evolved 2 slots: Utility x2 813 | -9/Materials | Core integrity fell below 50% 818 | -9/Materials | Core integrity fell below 20% 820 | -9/Materials | Destroyed by Y-45 Defender with Heavy Assault Rifle Last Messages --------------- System corrupted: Component data lost. Dropped Lgt. Treads. Acquired Cooling System. K-01 Serf cleans the Material Processor. T-07 Excavator is excavating. K-01 Serf collects debris. C-30 ARC bursts open, deploying its payload. S-10 Pest unfolds itself. K-01 Serf collects debris. O-16 Technician: "IFF HANDSHAKE FAILED. SECURING TERMINAL." ALERT: Hostiles spotted, dispatching reinforcements to Terminal M011. Cesium-ion Thruster destroyed. Acquired 113 matter. Lgt. Ion Engine destroyed. Cesium-ion Thruster destroyed. Slammed into A-02 Transporter. Cesium-ion Thruster destroyed. S-10 Pest destroyed. Ion Engine destroyed. Adv. Sensor Array destroyed. Map ----- +----------------------------------------------------+ | | | | | | | | | | | | | | | | | | | | | | | ?????????????????????????????????????????????????? | | ?????????????????????????????????????????????????? | | ?????????????????????????????????????????????????? | | ?????????????????????????????????????????????????? | | ????????????????????????##???????????????????????? | | ???????????????????????? ???????????????????????? | | ???????????????????????? ???????????????????????? | | ???????????????????????? #??????????????????????? | | ???????????????????????? #??????????????????????? | | ????????????????????????# #??????????????????????? | | ????????????????????????# #??????????????????????? | | ????????????????????????# #??????????????????????? | | ????????????????????????# #??????????????????????? | | ????????????????????????# #??????????????????????? | | ????????????????????????#@#??????????????????????? | | ???????????????????????## ########+#####?????????? | | ???????????????????????# ????????? | | ???????????????????????# ????????? | | ????????????????######?# s ????????? | | ????????????????# ?# g#######+#####?????????? | | ????????????????# """ # sg#?????????????????????? | | ????????????????# """ #= g#?????????????????????? | | ????????????????# """ /g[ #?????????????????????? | | ????????????????# # #?????????????????????? | | ????????????????# [# Y#?????????????????????? | | ????????????????######## ##????????????????????? | | ???????????????######## #????????????????????? | | ???????????????# #????????????????????? | | ???????????????# #?###########????????? | | ???????????????# #?# !! #????????? | | ???????????????# #### #?# ! ########## | | ???????????????# #??#######?# # """ """ | | ???????????????# #??????????# # """ """ | | ???????????????# ##################+### """ """ | | ???????????????# # | | ???????????????/ / | | ?????????????? # # | | ????????????? ######## #####+######### # | | ????????????? ????????# #?? ??????# # / | +----------------------------------------------------+ Best States ------------- Heat Dissipation 28 Energy Generation 10 Energy Capacity 250 Matter Stores 247 Matter Capacity 300 Sight Range 16 Robot Scan Range 16 Terrain Scan Density 10 Evasion (%) 62 Recoil Reduction 2 Defensive Hacking 10 Item Schematics ----------------- None Robot Schematics ------------------ None Fabricated ------------ Nothing Alien Tech Used ----------------- None Achievements -------------- None Challenges ------------ None Game ------ Seed HardcellAlertPrototype Manual? 0 Play Time 00:13:50 Cumulative 11.5 hours Start 2021.08.12 @ 15:41:51 End 2021.08.12 @ 15:55:46 Sessions 1 Manual Loads 0 Difficulty Rogue Special Mode None Game No. 26 Rogue 6 Adventurer 20 Explorer 0 Win Type - Total 1 Types 1/0/0/0/0/0/0/0/0 Lore% 13 Gallery% 34 Achievement% 26 Wizard Run 0 Options --------- ASCII 0 Keyboard 0 Movement Arrows Keybinds 0 Fullscreen 1 Font 18/SmallcapsGlow Map View 76x50 Tactical HUD 0 Map Filters NONE Filters NONE Steam 1 RUN: 27f8e004-71f6-4aad-85f4-b47d7fdc3c3d